bitfinex/quotes_ETHUSD_20251111
["timestamp","ask_amount","ask_price","bid_price","bid_amount"]
[1762872624264,3.09567688,3495.2,3495.1,0.008]
[1762872624664,1.39387288,3495.2,3495.1,0.008]
[1762872625000,1.2961,3495.2,3495.1,0.008]
[1762872625211,5.55078797,3495.2,3495.1,0.008]
[1762872625496,2.68972137,3495.2,3495.1,0.008]
[1762872625710,1.1337408,3495.2,3495.1,0.008]
[1762872625848,1.9557408,3495.2,3495.1,0.008]
[1762872626049,3.26978013,3495.2,3495.1,0.008]
[1762872626297,6.13075025,3495.2,3495.1,0.008]
[1762872626801,6.53625425,3495.2,3495.1,0.008]
[1762872627807,7.02713841,3495.2,3495.1,0.008]
[1762872628611,6.53625425,3495.2,3495.1,0.008]
[1762872628771,7.7755783,3495.2,3495.1,0.008]
[1762872628977,6.53325425,3495.2,3495.1,0.008]
[1762872629894,7.02413841,3495.2,3495.1,0.008]
[1762872630096,6.53325425,3495.2,3495.1,0.008]
[1762872630282,7.02413841,3495.2,3495.1,0.008]
[1762872630896,3.75756781,3495.2,3495.1,0.008]
[1762872631198,0.816,3495.2,3495.1,0.008]
[1762872631858,0.174,3495.5,3495.1,0.008]
[1762872633500,0.815,3495.7,3495.2,0.4556]
[1762872634158,0.002,3495.8,3495.2,0.4556]
[1762872634393,0.002,3495.8,3495.7,0.1955]
[1762872634760,0.002,3495.8,3495.7,0.6511]
[1762872637004,0.002,3495.8,3495.3,0.4556]
[1762872637208,0.002,3495.8,3495.7,0.1955]
[1762872637567,0.002,3495.8,3495.7,0.6511]
[1762872637989,0.002,3495.8,3495.4,0.1955]
[1762872638566,0.002,3495.8,3495.5,0.4556]
[1762872639204,0.002,3496.1,3495.6,0.5]
[1762872639400,6.34,3497.4,3495.7,0.02860657]
[1762872639610,0.0112,3497.9,3496.2,0.5]
[1762872639821,0.0112,3497.9,3495.8,0.4556]
[1762872639967,0.0112,3497.9,3497.8,0.1955]
[1762872640482,0.0112,3497.9,3497.8,0.6511]
[1762872640885,0.002,3498.3,3498.2,0.5]
[1762872641321,0.002,3498.3,3498.2,0.9556]
[1762872642364,0.002,3498.6,3498.2,0.4556]
[1762872642566,0.002,3498.6,3498.5,0.5]
[1762872642788,0.002,3498.6,3498.3,0.4556]
[1762872643034,0.002,3498.6,3497.8,0.1955]
[1762872643035,0.002,3498.6,3497.8,0.6511]
[1762872643396,0.002,3498.6,3497.4,0.1955]
[1762872643592,1.1337408,3498.5,3497.4,0.6511]
[1762872643793,0.002,3498.6,3497.4,0.6511]
[1762872644050,2.85836787,3498.5,3497.4,0.6511]
[1762872644325,0.002,3498.6,3497.4,0.6511]
[1762872644689,2.85843339,3498.5,3497.4,0.1955]
[1762872644888,0.002,3498.6,3497.4,0.1955]
[1762872645192,1.1357408,3498.6,3497.4,0.1955]
[1762872645399,0.002,3498.6,3497.5,0.4556]
[1762872646446,0.002,3498.6,3497.5,0.9556]
[1762872646606,0.002,3498.6,3497.5,0.4556]
[1762872647205,0.1416,3497.6,3496.2,0.4556]
[1762872647412,1.1337408,3498.5,3496.2,0.4556]
[1762872647413,0.802,3497.7,3496.2,0.4556]
[1762872647617,1.1337408,3498.1,3496.4,0.5]
[1762872647817,0.803,3498.0,3496.4,0.5]
[1762872648021,0.4558,3498.5,3496.5,0.4556]
[1762872648223,0.8032,3498.6,3496.7,0.5]
[1762872648406,1.259,3498.6,3496.7,0.5]
[1762872648607,1.259,3498.6,3496.8,0.4556]
[1762872648943,1.259,3498.6,3497.0,9.39084389]
[1762872648944,0.0012,3498.6,3497.0,9.39084389]
[1762872649231,0.0012,3498.6,3498.5,0.1955]
[1762872649755,0.0012,3498.6,3498.5,0.6511]
[1762872649905,0.0012,3498.6,3498.5,1.1511]
[1762872650963,0.0012,3498.6,3498.5,4.00946787]
[1762872651165,0.0012,3498.6,3498.5,1.1511]
[1762872651658,0.01,3498.9,3498.8,2.85812278]
[1762872651825,0.01,3498.9,3498.8,3.35812278]
[1762872652177,0.01,3498.9,3498.8,4.61272278]
[1762872652315,0.002,3499.3,3499.2,3.35779606]
[1762872652663,0.002,3499.3,3499.2,4.61139606]
[1762872652865,0.002,3499.3,3499.2,0.9556]
[1762872653035,0.002,3499.3,3499.2,4.61139606]
[1762872653223,0.002,3499.3,3499.2,1.7536]
[1762872653565,0.002,3499.3,3499.2,4.61139606]
[1762872653916,0.002,3499.3,3499.2,1.7526]
[1762872654118,0.002,3499.3,3499.2,4.61039606]
[1762872654729,0.002,3499.3,3499.2,1.7516]
[1762872654964,0.002,3499.3,3499.2,3.81339606]
[1762872655260,0.002,3499.3,3499.2,4.60839606]
[1762872655463,0.002,3499.3,3499.2,4.80389606]
[1762872656062,0.002,3499.3,3499.2,1.9461]
[1762872656218,0.1758,3501.3,3499.8,0.5]
[1762872656419,0.1758,3501.3,3499.8,1.294]
[1762872656619,0.1758,3501.3,3499.8,4.64670613]
[1762872656869,0.1758,3501.3,3499.8,1.7894]
[1762872657017,0.1758,3501.3,3499.8,4.64670613]
[1762872657217,0.1758,3501.3,3500.1,0.5]
[1762872657218,0.1458,3501.3,3500.1,0.5]
[1762872657667,0.1458,3501.3,3500.1,0.9791]
[1762872658473,0.1458,3501.3,3500.2,0.792]
[1762872658683,0.1458,3501.3,3500.3,0.1814]
[1762872659038,0.631,3501.3,3499.5,0.4791]
[1762872659236,0.631,3501.3,3499.3,0.5]
[1762872659237,1.7647408,3501.3,3499.3,0.5]
[1762872659436,0.97608416,3501.2,3499.2,0.9875]
[1762872659674,0.792,3501.1,3499.2,1.9666]
[1762872659896,1.2772,3501.1,3499.2,1.9666]
[1762872660190,0.4852,3501.0,3499.2,1.1746]
[1762872660488,0.4852,3501.0,3499.2,0.1955]
[1762872660791,0.132,3499.3,3499.1,0.01]
[1762872661590,0.4852,3499.7,3499.1,0.01]
[1762872661591,0.132,3499.7,3499.1,0.01]
[1762872661798,0.4852,3499.2,3499.1,0.01]
[1762872662148,1.1337408,3499.6,3499.1,0.01]
[1762872662345,0.132,3499.7,3499.1,0.01]
[1762872662593,0.132,3500.1,3499.1,0.01]
[1762872662795,5.69964018,3501.6,3499.2,0.5]
[1762872662796,0.4852,3500.9,3499.2,0.5]
[1762872662995,1.2753408,3501.7,3499.1,0.4891]
[1762872662996,0.4852,3501.4,3499.1,0.4891]
[1762872663291,0.1416,3501.7,3499.1,0.4891]
[1762872663292,0.4852,3501.0,3499.1,0.4891]
[1762872663759,1.1337408,3500.8,3499.1,0.4891]
[1762872663964,0.405504,3500.6,3499.1,0.4891]
[1762872664187,1.00224336,3500.6,3499.1,0.4891]
[1762872664403,0.59673936,3500.5,3499.1,0.4891]
[1762872664569,1.00224336,3500.8,3499.1,0.4891]
[1762872664769,1.08193936,3500.8,3499.1,0.4891]
[1762872665001,0.4852,3500.8,3499.1,0.4891]
[1762872665390,0.4852,3500.8,3499.2,2.85777024]
[1762872665560,0.4852,3500.8,3499.1,0.4891]
[1762872665561,0.59728757,3500.9,3499.1,0.4891]
[1762872665902,0.59728757,3501.0,3499.2,0.5]
[1762872666060,0.59728757,3501.0,3499.3,0.5]
[1762872666260,0.792,3501.1,3499.3,0.79]
[1762872666458,0.5983272,3501.0,3499.4,0.4791]
[1762872666707,1.0835272,3501.0,3499.4,0.4791]
[1762872666862,0.5983272,3500.9,3499.4,0.4791]
[1762872667202,5.78188469,3500.9,3499.1,0.01]
[1762872667360,0.74843989,3500.5,3499.1,0.01]
[1762872667562,1.75227109,3500.6,3499.1,0.01]
[1762872667782,1.83196709,3500.5,3499.1,0.01]
[1762872668396,0.74843989,3500.3,3499.1,0.01]
[1762872668682,0.74843989,3500.2,3499.1,0.01]
[1762872669304,0.74843989,3500.1,3499.1,0.01]
[1762872669500,3.414504,3500.0,3499.1,0.01]
[1762872669720,0.74843989,3499.5,3499.1,0.01]
[1762872669868,1.34676709,3499.4,3499.1,0.01]
[1762872670076,0.788,3499.3,3499.1,0.01]
[1762872670277,0.5983272,3499.2,3499.1,0.01]
[1762872670984,1.34676709,3499.4,3499.1,0.01]
[1762872671170,0.5983272,3499.3,3499.1,0.01]
[1762872671372,1.83196709,3499.5,3499.1,0.01]
[1762872671625,0.405504,3499.2,3499.1,0.01]
[1762872671923,0.405504,3498.6,3498.5,0.001]
[1762872672075,1.191504,3498.6,3498.5,0.001]
[1762872672275,1.04643116,3498.6,3498.5,0.001]
[1762872672991,1.53163116,3498.6,3498.5,0.001]
[1762872673198,1.53163116,3498.6,3498.1,0.011]
[1762872673199,3.009,3498.4,3498.1,0.011]
[1762872673487,1.64628082,3498.3,3498.1,0.011]
[1762872673724,0.86028082,3498.2,3498.1,0.011]
[1762872674039,1.34548082,3498.2,3498.1,0.011]
[1762872674226,1.75098482,3498.2,3498.1,0.011]
[1762872674371,0.86028082,3498.2,3498.1,0.011]
[1762872674577,1.38584966,3498.4,3498.1,0.011]
[1762872674823,1.1337408,3498.2,3498.1,0.011]
[1762872674981,1.73359046,3498.2,3498.1,0.011]
[1762872675481,8.07359046,3498.2,3498.1,0.011]
[1762872675711,8.07359046,3498.2,3498.1,0.1924]
[1762872676009,8.07359046,3498.2,3498.1,0.011]
[1762872676210,9.56912421,3498.2,3498.1,0.011]
[1762872676372,9.71538442,3498.2,3498.1,0.011]
[1762872676569,10.00950026,3498.2,3498.1,0.011]
[1762872676782,8.73930026,3498.2,3498.1,0.011]
[1762872677024,10.2733161,3498.2,3498.1,0.011]
[1762872677331,5.16039072,3498.2,3498.1,0.0048]
[1762872677675,0.405504,3497.3,3496.1,0.01]
[1762872677909,3.1348,3497.9,3496.1,0.01]
[1762872677910,9.60144031,3497.2,3496.1,0.01]
[1762872678108,10.09232447,3497.2,3496.1,0.01]
[1762872678611,8.81644031,3497.2,3496.1,0.01]
[1762872678784,9.60044031,3497.2,3496.1,0.01]
[1762872678986,2.1779466,3497.2,3496.2,0.4791]
[1762872679187,1.1337408,3497.2,3496.2,0.4791]
[1762872679498,1.9187408,3497.2,3496.2,0.4791]
[1762872680007,0.785,3497.2,3497.0,0.1814]
[1762872680208,0.785,3497.2,3497.1,0.4891]
[1762872680793,1.38351477,3497.2,3497.1,0.4891]
[1762872681097,2.04312452,3497.2,3497.1,0.01]
[1762872681298,4.15818748,3497.2,3497.1,0.01]
[1762872681471,1.1337408,3497.1,3496.1,0.01]
[1762872681672,7.86465682,3496.2,3496.1,0.01]
[1762872681884,8.91000057,3496.2,3496.1,0.01]
[1762872682106,8.41911641,3496.2,3496.1,0.01]
[1762872682491,9.99234357,3496.2,3496.1,0.01]
[1762872682890,2.51963155,3496.2,3496.1,0.01]
[1762872683082,3.18073155,3496.2,3496.1,0.01]
[1762872683412,3.17980869,3496.2,3496.1,0.01]
[1762872683711,3.4065878,3496.2,3496.1,0.01]
[1762872683911,9.86654613,3496.2,3496.1,0.01]
[1762872684115,10.61281457,3496.2,3496.1,0.01]
[1762872684336,8.89046197,3496.2,3496.1,0.01]
[1762872684484,9.86654613,3496.2,3496.1,0.01]
[1762872685225,9.86654613,3496.2,3495.6,0.001]
[1762872685226,0.89638816,3495.7,3495.6,0.001]
[1762872685387,3.07357527,3495.7,3495.6,0.001]
[1762872685582,3.17983411,3495.7,3495.6,0.001]
[1762872685787,4.16712388,3495.7,3495.6,0.001]
[1762872686190,0.405504,3494.7,3494.0,1.45916361]
[1762872686406,0.49088416,3494.8,3494.0,1.45916361]
[1762872686407,0.405504,3494.5,3494.0,1.45916361]
[1762872686698,1.322304,3494.5,3493.7,0.191]
[1762872686901,2.31008816,3494.5,3493.4,0.1814]
[1762872687099,1.322304,3494.5,3493.7,0.191]
[1762872687397,1.819204,3494.5,3493.4,0.1814]
[1762872687599,1.189504,3494.5,3493.7,0.191]
[1762872687840,0.784,3494.5,3493.8,0.4776]
[1762872688384,0.784,3494.5,3493.7,0.191]
[1762872688614,0.784,3494.5,3493.8,0.4776]
[1762872688784,1.189504,3494.5,3493.7,0.191]
[1762872689721,1.190504,3494.5,3493.7,0.191]
[1762872689929,1.190504,3494.5,3493.0,0.191]
[1762872690113,0.49088416,3493.2,3492.5,0.003]
[1762872690289,1.68138816,3493.2,3492.5,0.003]
[1762872690492,1.77278416,3493.2,3492.5,0.003]
[1762872690993,2.17828816,3493.2,3492.5,0.003]
[1762872691808,1.687404,3493.2,3492.5,0.003]
[1762872692106,3.56859362,3493.2,3492.5,0.003]
[1762872692506,2.52702896,3493.2,3492.5,0.003]
[1762872692718,3.31402896,3493.2,3492.5,0.003]
[1762872693341,3.31402896,3493.2,3490.3,0.191]
[1762872693342,1.6306408,3493.1,3490.3,0.191]
[1762872693652,0.73637566,3493.7,3492.6,0.191]
[1762872693951,0.98753739,3493.9,3492.6,0.191]
[1762872693952,0.793,3493.6,3492.6,0.191]
[1762872694530,0.5,3493.8,3492.6,0.191]
[1762872694703,0.1158,3494.2,3491.1,0.01]
[1762872694704,0.793,3493.7,3492.0,0.4776]
[1762872694899,0.792,3493.6,3492.4,0.191]
[1762872695726,0.405504,3493.3,3492.1,0.191]
[1762872696123,0.404704,3493.3,3492.1,0.191]
[1762872696324,0.5,3493.4,3492.1,0.191]
[1762872696526,0.792,3493.6,3492.1,0.6686]
[1762872696725,0.792,3493.5,3492.2,0.4776]
[1762872698333,0.5,3493.4,3492.1,0.191]
[1762872698510,0.405504,3493.4,3492.1,0.191]
[1762872698844,0.405504,3493.0,3491.8,0.193]
[1762872699044,0.791,3492.9,3491.8,0.193]
[1762872699262,0.405504,3492.8,3491.2,0.193]
[1762872699463,0.405504,3492.3,3491.0,0.003]
[1762872699622,0.5,3492.0,3491.0,0.003]
[1762872699964,0.9193,3491.9,3491.0,0.003]
[1762872700350,0.405504,3491.8,3491.0,0.003]
[1762872700540,0.5,3491.8,3491.0,0.003]
[1762872700930,1.3901,3491.9,3491.0,0.003]
[1762872701142,0.5,3491.8,3491.0,0.003]
[1762872701342,0.9193,3491.9,3491.0,0.003]
[1762872701749,0.791,3491.9,3491.0,0.003]
[1762872702644,0.5,3491.8,3491.0,0.003]
[1762872703170,0.5,3491.3,3491.0,0.003]
[1762872703346,0.791,3491.2,3491.0,0.003]
[1762872705571,0.1283,3492.2,3491.1,0.4732]
[1762872705726,0.4708,3492.9,3491.1,0.4732]
[1762872705727,0.793,3492.1,3491.1,0.4732]
[1762872706427,0.793,3492.1,3491.1,0.4742]
[1762872707173,0.793,3492.1,3491.3,2.86423141]
[1762872707377,0.5991,3492.0,3491.1,0.011]
[1762872707549,0.5,3491.2,3491.1,0.011]
[1762872707754,1.05114493,3491.2,3491.1,0.011]
[1762872707940,0.1283,3492.0,3491.1,0.011]
[1762872707941,1.99955114,3492.0,3491.1,0.011]
[1762872708141,0.797,3491.9,3491.1,0.011]
[1762872708854,0.797,3491.9,3491.2,0.4632]
[1762872709284,0.9253,3491.9,3491.1,0.011]
[1762872709775,1.1337408,3491.7,3491.1,0.011]
[1762872709978,0.9253,3491.9,3491.1,0.011]
[1762872710394,0.25782213,3491.8,3491.1,0.011]
[1762872710772,0.9253,3491.9,3491.1,0.011]
[1762872710974,0.797,3491.9,3491.1,0.011]
[1762872711503,0.797,3491.9,3491.2,0.4632]
[1762872712055,0.795,3492.5,3491.2,0.4632]
[1762872712381,0.25843137,3492.4,3491.2,0.4632]
[1762872712579,0.795,3492.5,3491.2,0.4632]
[1762872713352,1.547,3493.2,3492.4,0.193]
[1762872713601,0.002,3493.6,3492.4,0.6562]
[1762872713602,1.05275954,3493.1,3492.4,0.6562]
[1762872713887,0.794,3493.1,3492.4,0.6562]
[1762872714068,0.794,3493.1,3492.5,0.4632]
[1762872715701,0.002,3493.6,3492.5,0.4632]
[1762872715904,0.002,3493.6,3493.5,0.1987]
[1762872716500,0.002,3493.6,3493.5,0.6739]
[1762872717297,0.002,3493.6,3493.5,0.1987]
[1762872717605,0.002,3493.6,3493.5,0.4752]
[1762872717766,0.01,3493.9,3493.5,0.4752]
[1762872718808,0.73751034,3495.2,3493.5,0.4752]
[1762872719008,0.25934855,3494.8,3493.9,0.5]
[1762872719209,0.59761032,3495.2,3494.0,0.4988]
[1762872719378,0.79,3495.3,3494.0,0.9988]
[1762872719565,0.79,3495.3,3494.1,0.4988]
[1762872719771,1.7308806,3495.2,3494.1,0.4988]
[1762872719970,0.5971398,3495.1,3494.1,0.4988]
[1762872720276,0.0092,3494.9,3494.1,0.4988]
[1762872720668,1.1337408,3494.6,3494.1,0.4988]
[1762872720895,0.85548786,3494.5,3493.7,0.4988]
[1762872721115,0.25892858,3494.4,3493.7,0.4988]
[1762872721272,1.1337408,3494.1,3493.3,0.1987]
[1762872721621,0.79,3494.5,3493.4,0.5274254]
[1762872721842,0.0092,3494.9,3493.7,0.5]
[1762872722330,0.0092,3494.9,3493.8,0.4988]
[1762872722544,0.0092,3494.9,3494.0,0.5]
[1762872722837,0.0092,3494.9,3494.3,0.5]
[1762872722995,0.0092,3494.9,3493.9,0.9988]
[1762872723202,0.0092,3494.9,3494.3,3.36178937]
[1762872723498,0.01,3495.9,3494.8,0.5]
[1762872723701,0.01,3495.9,3495.8,0.1853]
[1762872724210,0.01,3496.9,3495.8,0.6841]
[1762872724608,0.01,3496.9,3496.0,0.5]
[1762872724809,0.01,3496.9,3496.1,0.4988]
[1762872725036,6.46254423,3496.5,3496.1,0.4988]
[1762872725252,0.01,3496.9,3496.1,0.4988]
[1762872725434,0.01,3496.9,3496.3,0.5]
[1762872725744,1.1337408,3496.6,3495.8,0.1853]
[1762872725930,1.1337408,3496.1,3495.8,0.6841]
[1762872726539,1.1337408,3496.3,3495.8,0.1853]
[1762872726744,1.1337408,3496.3,3495.4,0.1853]
[1762872727104,1.1337408,3496.3,3495.5,0.4988]
[1762872728702,6.45593989,3496.9,3495.5,0.4988]
[1762872729043,0.01,3496.9,3495.7,0.5]
[1762872729264,0.01,3496.9,3495.5,3.35959151]
[1762872729466,0.01,3496.9,3496.0,0.5]
[1762872729960,0.01,3496.9,3496.1,0.4988]
[1762872730167,1.9217408,3496.8,3496.1,0.4988]
[1762872730667,1.9217408,3496.8,3495.5,0.4988]
[1762872730828,1.1337408,3496.3,3495.5,0.4988]
[1762872731161,0.788,3496.2,3495.4,0.1853]
[1762872731863,0.788,3496.2,3495.5,0.9988]
[1762872732026,0.787,3496.7,3495.6,0.4988]
[1762872732478,1.1337408,3495.9,3495.4,0.1853]
[1762872732695,0.01,3496.9,3495.5,0.52740821]
[1762872732991,0.788,3496.8,3495.5,0.4988]
[1762872733127,0.01,3496.9,3495.5,0.4988]
[1762872733329,0.787,3496.8,3495.5,0.4988]
[1762872733881,1.1337408,3496.0,3494.4,0.1853]
[1762872734033,0.1348,3496.7,3494.5,0.21391639]
[1762872734234,0.792,3496.6,3495.3,0.5]
[1762872734655,0.792,3496.6,3495.8,0.5]
[1762872734860,0.792,3496.6,3495.4,0.4988]
[1762872735344,1.292,3496.6,3494.8,0.4988]
[1762872735526,0.4731,3497.5,3495.4,0.5]
[1762872735730,0.791,3496.8,3495.7,0.5]
[1762872736165,0.791,3496.8,3495.8,0.6841]
[1762872736633,0.79,3496.8,3495.9,0.4988]
[1762872738009,0.79,3496.8,3495.8,0.1853]
[1762872738200,0.79,3496.8,3495.8,0.6841]
[1762872738390,0.1348,3496.7,3495.6,0.1853]
[1762872739570,0.79,3496.8,3495.6,0.6841]
[1762872739768,0.79,3496.8,3495.7,0.5]
[1762872739970,0.79,3496.8,3495.7,0.4988]
[1762872741509,0.1348,3496.7,3495.7,0.4988]
[1762872741712,0.1348,3496.7,3495.6,0.1853]
[1762872741878,3.009,3496.6,3495.3,0.1853]
[1762872742069,4.1427408,3496.5,3494.5,0.6841]
[1762872742270,1.1337408,3496.1,3494.5,0.6841]
[1762872742513,1.1337408,3496.1,3494.6,0.4988]
[1762872742721,4.1427408,3495.8,3494.5,0.1853]
[1762872742875,0.5,3495.9,3494.5,0.1853]
[1762872742876,0.787,3495.7,3494.5,0.1853]
[1762872743528,4.07855287,3495.6,3493.1,0.01]
[1762872743676,4.07855287,3495.6,3493.2,0.4988]
[1762872743677,3.009,3495.2,3493.2,0.4988]
[1762872743877,1.73013463,3495.1,3493.2,0.4988]
[1762872744196,0.5964312,3495.0,3493.5,0.4988]
[1762872744391,0.4731,3494.9,3493.1,0.5088]
[1762872744609,0.1221,3494.2,3493.1,0.01]
[1762872744907,0.9111,3494.2,3493.1,0.01]
[1762872745220,0.5,3493.4,3493.1,0.01]
[1762872745424,1e-08,3493.3,3493.1,0.01]
[1762872745574,0.49997138,3493.4,3493.1,0.01]
[1762872745931,0.5,3493.4,3493.1,0.01]
[1762872746078,6.73698221,3493.5,3493.1,0.01]
[1762872746279,1.9217408,3493.4,3492.2,1.40443814]
[1762872746575,0.08,3493.2,3491.8,1.29]
[1762872746828,0.74562555,3493.3,3491.8,1.29]
[1762872747025,0.868,3493.1,3491.8,1.29]
[1762872747220,0.788,3493.1,3491.8,1.29]
[1762872747509,0.08,3492.5,3491.8,1.29]
[1762872747875,0.0717,3492.4,3491.8,1.29]
[1762872748103,0.788,3492.3,3491.8,1.29]
[1762872748480,1.1337408,3493.4,3491.8,1.29]
[1762872748481,0.1517,3492.9,3491.8,1.29]
[1762872748814,6.73698221,3493.5,3492.1,0.1973]
[1762872748815,0.0717,3493.5,3492.1,0.1973]
[1762872749323,0.1221,3494.2,3492.2,0.9701]
[1762872749481,0.1221,3494.2,3492.5,0.5]
[1762872749676,0.1221,3494.2,3492.4,0.787]
[1762872750212,0.1221,3494.2,3492.5,0.4701]
[1762872750411,0.1221,3494.2,3492.6,0.786]
[1762872750800,0.1221,3494.2,3492.7,0.4701]
[1762872751182,0.1221,3494.2,3492.7,1.2561]
[1762872751414,0.797,3494.9,3492.7,1.2561]
[1762872751714,0.797,3494.9,3492.1,0.1973]
[1762872751715,0.0717,3494.8,3492.8,1.2551]
[1762872751951,0.797,3494.9,3492.8,1.2551]
[1762872752106,0.01,3494.9,3493.1,0.5]
[1762872752538,0.01,3494.9,3493.2,0.4701]
[1762872752910,0.01,3494.9,3493.3,0.1873]
[1762872753236,0.01,3494.9,3493.4,0.4701]
[1762872753507,0.01,3494.9,3493.8,0.5]
[1762872753744,0.01,3494.9,3493.9,0.785]
[1762872753923,0.01,3494.9,3494.8,0.1873]
[1762872754534,0.01,3494.9,3494.8,0.6574]
[1762872754719,0.01,3494.9,3494.8,0.1873]
[1762872755135,0.01,3494.9,3494.8,0.6574]
[1762872757243,0.01,3494.9,3494.8,1.1574]
[1762872757446,0.01,3494.9,3494.8,0.6574]
[1762872757653,0.01,3494.9,3494.8,1.1574]
[1762872757856,0.01,3495.9,3494.9,0.5]
[1762872758038,0.01,3495.9,3494.9,1.2521]
[1762872758566,0.01,3495.9,3495.0,0.4701]
[1762872758718,0.01,3495.9,3495.8,0.1873]
[1762872759484,0.01,3495.9,3495.4,0.4701]
[1762872759485,0.01,3495.9,3495.5,0.9693]
[1762872760249,0.01,3495.9,3495.5,0.782]
[1762872760614,0.01,3495.9,3494.8,0.1873]
[1762872760816,0.01,3495.9,3494.9,1.2511]
[1762872761222,0.01,3495.9,3494.9,0.781]
[1762872761556,0.01,3495.9,3495.0,0.4701]
[1762872761722,0.01,3495.9,3495.0,0.9701]
[1762872762252,0.01,3495.9,3495.1,0.4701]
[1762872762571,0.01,3495.9,3495.5,0.001]
[1762872763638,0.0917,3495.9,3495.5,0.001]
[1762872764079,0.01,3495.9,3495.5,0.001]
[1762872766261,0.0917,3495.9,3495.5,0.001]
[1762872766644,0.08,3495.7,3495.5,0.001]
[1762872766840,0.0917,3495.9,3495.5,0.001]
[1762872767198,0.08,3495.6,3495.5,0.001]
[1762872767642,0.1617,3495.6,3495.5,0.001]
[1762872767841,0.0817,3495.6,3495.5,0.001]
[1762872768261,0.0809,3495.6,3495.5,0.001]
[1762872768466,0.08,3495.6,3495.5,0.001]
[1762872768774,0.08,3495.8,3495.5,0.001]
[1762872768965,0.08,3495.6,3495.5,0.001]
[1762872769168,1.2137408,3495.6,3495.5,0.001]
[1762872769365,8.15152903,3495.6,3495.5,0.001]
[1762872769903,8.55703303,3495.6,3495.5,0.001]
[1762872770103,9.33403303,3495.6,3495.5,0.001]
[1762872770308,8.15242903,3495.6,3495.5,0.001]
[1762872770605,7.5546408,3495.6,3495.5,0.001]
[1762872770772,7.6346408,3495.6,3495.5,0.001]
[1762872771811,7.5546408,3495.6,3495.5,0.001]
[1762872771970,7.4737408,3495.6,3495.5,0.001]
[1762872774780,0.01,3495.9,3495.5,0.001]
[1762872775297,1.1337408,3495.7,3495.5,0.001]
[1762872777606,6.34,3495.8,3495.5,0.001]
[1762872777811,1.1337408,3495.7,3495.5,0.4838]
[1762872777975,0.01,3495.9,3495.7,0.493]
[1762872778178,0.01,3495.9,3495.8,0.3954]
[1762872778493,0.01,3495.9,3495.5,0.4838]
[1762872778813,0.01,3495.9,3495.7,6.54294609]
[1762872778984,0.01,3495.9,3495.8,0.4828]
[1762872779786,0.01,3495.9,3495.8,1.2568]
[1762872780811,0.01,3495.9,3495.5,0.001]
[1762872780812,0.09,3495.9,3495.5,0.001]
[1762872780979,0.01,3495.9,3495.5,0.001]
[1762872781480,0.012,3495.9,3495.5,0.001]
[1762872782423,0.83852555,3495.9,3495.5,0.001]
[1762872782826,0.60016612,3495.8,3495.5,0.001]
[1762872783003,0.012,3495.9,3495.5,0.001]
[1762872783384,0.83852555,3495.9,3495.5,0.001]
[1762872783612,0.74562555,3495.8,3495.5,0.001]
[1762872783928,0.1609,3495.7,3495.5,0.001]
[1762872784289,0.74562555,3495.8,3495.5,0.001]
[1762872784640,0.61216612,3495.9,3495.6,0.4828]
[1762872784826,0.002,3496.3,3495.7,0.02860657]
[1762872785136,0.002,3496.3,3496.2,0.1836]
[1762872785500,0.002,3496.3,3496.2,0.6664]
[1762872786229,0.002,3496.3,3496.2,0.1836]
[1762872786432,0.002,3496.3,3495.9,0.1836]
[1762872786585,0.002,3496.3,3495.9,0.9566]
[1762872786923,0.002,3496.3,3495.9,1.4394]
[1762872787135,0.002,3496.3,3496.2,0.493]
[1762872787634,0.002,3496.3,3496.2,0.9758]
[1762872790733,0.002,3496.3,3496.2,1.266]
[1762872791341,0.002,3496.3,3496.2,1.7488]
[1762872792255,0.0012,3496.3,3496.2,1.7488]
[1762872794227,0.0012,3496.3,3496.2,0.773]
[1762872795061,0.0012,3496.3,3495.9,0.1836]
[1762872795233,0.0012,3496.3,3496.0,0.773]
[1762872796267,0.0012,3496.3,3495.5,0.001]
[1762872796268,0.0929,3496.1,3495.5,0.001]
[1762872796440,0.0929,3496.0,3495.5,0.001]
[1762872796622,0.0012,3496.3,3495.5,0.001]
[1762872797383,0.0929,3495.6,3495.2,0.773]
[1762872797584,0.5265,3495.3,3495.2,0.773]
[1762872797883,0.5265,3495.3,3493.3,0.1873]
[1762872797884,1.1337408,3495.2,3493.3,0.1873]
[1762872798089,1.3213408,3495.2,3494.4,0.773]
[1762872798310,0.4586,3495.1,3494.4,0.773]
[1762872798597,0.2548,3494.5,3494.4,0.773]
[1762872798888,0.4586,3495.1,3494.4,0.773]
[1762872799886,0.166,3495.5,3494.6,0.5]
[1762872800200,0.166,3495.5,3494.5,0.4828]
[1762872800690,0.6246,3495.5,3495.1,0.001]
[1762872801065,0.0905,3495.2,3495.1,0.001]
[1762872801461,0.166,3495.5,3495.1,0.001]